bitfinex/quotes_SOLUSD_20250212
["timestamp","ask_amount","ask_price","bid_price","bid_amount"]
[1739343093568,0.063,194.26,194.21,15.94848329]
[1739343093883,0.063,194.26,194.22,29.36033182]
[1739343094595,0.063,194.26,194.23,15.94848329]
[1739343094970,0.063,194.26,194.24,15.94848329]
[1739343095386,0.063,194.26,194.25,29.36033182]
[1739343095569,0.063,194.26,194.25,34.50833182]
[1739343095771,0.063,194.26,194.25,18.55984853]
[1739343096374,0.063,194.26,194.25,34.50833182]
[1739343097578,0.063,194.26,194.25,34.75931182]
[1739343102990,0.063,194.26,194.24,21.09668329]
[1739343103181,0.063,194.26,194.24,5.1482]
[1739343103386,0.063,194.26,194.25,13.41184853]
[1739343104503,0.063,194.26,194.25,34.50833182]
[1739343104982,0.063,194.26,194.25,34.75931182]
[1739343105997,0.063,194.26,194.25,34.88480182]
[1739343106173,0.0001,194.26,194.25,36.53879182]
[1739343109103,0.0001,194.26,194.25,36.28781182]
[1739343109411,0.0001,194.26,194.25,18.81082853]
[1739343109587,0.0001,194.26,194.23,5.1485]
[1739343109791,0.0001,194.26,194.21,21.09728329]
[1739343109981,15.94848329,194.25,194.19,15.94848329]
[1739343110179,0.0001,194.26,194.18,15.94848329]
[1739343110180,15.94848329,194.24,194.18,15.94848329]
[1739343110410,15.94848329,194.24,194.19,0.12549]
[1739343110800,15.94848329,194.25,194.19,13.66282853]
[1739343111490,15.94848329,194.25,194.19,18.81222853]
[1739343112007,15.94848329,194.24,194.17,21.12828329]
[1739343112207,15.94848329,194.24,194.18,13.41184853]
[1739343112503,1.5444,194.25,194.17,0.03]
[1739343112504,15.94848329,194.21,194.17,0.03]
[1739343112683,15.94848329,194.2,194.17,0.03]
[1739343114707,15.94848329,194.21,194.17,0.03]
[1739343115904,15.94848329,194.23,194.17,0.03]
[1739343117011,15.94848329,194.22,194.17,0.03]
[1739343117411,15.94848329,194.18,194.16,0.03]
[1739343117703,8.6902,194.19,194.16,0.03]
[1739343117704,35.94848329,194.17,194.16,0.03]
[1739343119719,17.49348329,194.17,194.16,0.03]
[1739343119924,37.49348329,194.17,194.16,0.03]
[1739343120409,20.0,194.14,194.1,0.03]
[1739343120729,15.94848329,194.11,194.1,0.03]
[1739343121086,17.49398329,194.11,194.1,0.03]
[1739343122387,15.94848329,194.11,194.1,0.03]
[1739343125023,15.94848329,194.12,194.1,0.03]
[1739343126322,15.94848329,194.11,194.1,0.03]
[1739343128120,15.94848329,194.12,194.1,0.03]
[1739343129016,15.94848329,194.14,194.1,0.03]
[1739343129236,7.6902,194.19,194.1,0.03]
[1739343129237,15.94848329,194.15,194.1,0.03]
[1739343130019,15.94848329,194.14,194.1,0.03]
[1739343130804,15.94848329,194.16,194.1,0.03]
[1739343131124,15.94848329,194.15,194.1,0.03]
[1739343131436,15.94848329,194.14,194.1,0.03]
[1739343131805,15.94848329,194.15,194.1,0.03]
[1739343132003,15.94848329,194.14,194.1,0.03]
[1739343132400,15.94848329,194.15,194.1,0.03]
[1739343132601,15.94848329,194.13,194.1,0.03]
[1739343133099,15.94848329,194.14,194.1,0.03]
[1739343136222,15.94848329,194.13,194.1,0.03]
[1739343136431,15.94848329,194.14,194.1,0.03]
[1739343136729,0.063,194.17,194.1,0.03]
[1739343136730,15.94848329,194.15,194.1,0.03]
[1739343137728,15.94848329,194.15,194.1,5.1819]
[1739343139522,15.94848329,194.13,194.1,0.03]
[1739343140120,15.94848329,194.14,194.1,0.03]
[1739343141128,15.94848329,194.15,194.1,0.03]
[1739343142007,15.94848329,194.14,194.1,0.03]
[1739343142630,15.94848329,194.15,194.1,0.03]
[1739343142927,15.94848329,194.14,194.1,0.03]
[1739343143309,15.94848329,194.15,194.1,0.03]
[1739343144922,15.94848329,194.14,194.1,0.03]
[1739343146505,15.94848329,194.13,194.1,0.03]
[1739343147627,10.21076244,194.13,194.1,0.03]
[1739343147807,1.6081,194.16,194.1,0.03]
[1739343147808,10.21076244,194.11,194.1,0.03]
[1739343149729,15.95932855,194.11,194.1,0.03]
[1739343150409,15.95932855,194.12,194.1,0.03]
[1739343151217,15.95932855,194.13,194.1,0.03]
[1739343151817,15.95932855,194.12,194.1,0.03]
[1739343152027,15.95932855,194.13,194.1,0.03]
[1739343152233,1.6081,194.16,194.1,0.03]
[1739343152234,15.95932855,194.14,194.1,0.03]
[1739343152728,0.063,194.16,194.13,15.95932855]
[1739343153450,0.063,194.16,194.15,15.95932855]
[1739343153657,0.063,194.16,194.15,21.10992855]
[1739343153941,0.063,194.16,194.15,5.1506]
[1739343154621,0.063,194.16,194.13,15.95932855]
[1739343154622,0.063,194.16,194.13,21.11022855]
[1739343154832,0.063,194.16,194.13,5.1509]
[1739343155215,0.063,194.16,194.12,21.11072855]
[1739343157258,0.063,194.16,194.13,15.95932855]
[1739343158126,0.063,194.16,194.13,21.11032855]
[1739343158361,0.063,194.16,194.13,5.151]
[1739343158638,15.95932855,194.15,194.1,0.03]
[1739343159422,0.063,194.16,194.1,0.03]
[1739343159423,16.02232855,194.16,194.1,21.14112855]
[1739343159819,0.063,194.16,194.1,21.14112855]
[1739343160024,0.063,194.16,194.11,15.95932855]
[1739343160242,0.063,194.16,194.11,5.1516]
[1739343162246,15.95932855,194.15,194.1,0.03]
[1739343162452,15.95932855,194.14,194.1,0.03]
[1739343162638,15.95932855,194.12,194.1,0.03]
[1739343163437,15.95932855,194.11,194.1,0.03]
[1739343163746,15.95932855,194.12,194.1,0.03]
[1739343164737,15.95932855,194.11,194.1,0.03]
[1739343166862,17.50482855,194.11,194.1,0.03]
[1739343169452,17.63031855,194.11,194.1,0.03]
[1739343169661,11.88944555,194.11,194.1,0.03]
[1739343169953,52.88875775,194.11,194.1,0.03]
[1739343171956,11.88944555,194.11,194.1,0.03]
[1739343176381,0.12549,194.13,194.1,0.03]
[1739343176382,10.21845555,194.13,194.1,0.03]
[1739343176535,82.5,194.15,194.1,0.03]
[1739343176536,10.21845555,194.14,194.1,0.03]
[1739343176964,0.063,194.16,194.11,10.21845555]
[1739343177153,0.063,194.16,194.12,10.21845555]
[1739343177538,0.063,194.16,194.11,10.21845555]
[1739343177864,10.28145555,194.16,194.1,10.24845555]
[1739343178365,0.063,194.16,194.11,10.21845555]
[1739343178955,0.063,194.16,194.12,10.21845555]
[1739343179662,0.063,194.16,194.12,15.94581278]
[1739343179857,0.063,194.16,194.11,15.94581278]
[1739343180461,0.063,194.16,194.11,21.09731278]
[1739343180963,0.063,194.16,194.11,5.1515]
[1739343181166,16.00881278,194.16,194.11,5.1515]
[1739343181460,15.94581278,194.15,194.1,0.03]
[1739343182460,0.063,194.16,194.11,15.94581278]
[1739343182659,0.063,194.16,194.12,15.94581278]
[1739343182844,0.063,194.16,194.11,15.94581278]
[1739343183465,0.063,194.16,194.1,15.97581278]
[1739343183652,0.063,194.16,194.1,21.12751278]
[1739343185566,0.063,194.16,194.11,15.94581278]
[1739343185764,0.063,194.16,194.1,5.1817]
[1739343185765,0.063,194.16,194.12,15.94581278]
[1739343185946,0.063,194.16,194.13,15.94581278]
[1739343186144,0.063,194.16,194.14,15.94581278]
[1739343187159,0.063,194.16,194.15,15.94581278]
[1739343187657,0.063,194.16,194.15,21.09641278]
[1739343188560,0.063,194.16,194.14,15.94581278]
[1739343189469,0.063,194.16,194.15,15.94581278]
[1739343190241,0.063,194.16,194.15,29.35766131]
[1739343192062,0.063,194.16,194.15,34.50826131]
[1739343194853,17.61001278,194.16,194.11,0.03]
[1739343195148,15.94581278,194.12,194.11,0.03]
[1739343197077,15.94581278,194.13,194.11,0.03]
[1739343197651,15.94581278,194.12,194.11,0.03]
[1739343198059,17.49121278,194.12,194.11,0.03]
[1739343200975,1.5454,194.12,194.11,0.03]
[1739343201152,17.49121278,194.12,194.11,0.03]
[1739343201891,5.527,194.16,194.11,0.03]
[1739343201892,15.94581278,194.13,194.11,0.03]
[1739343202176,17.49101278,194.15,194.11,0.03]
[1739343202677,15.94581278,194.14,194.11,0.03]
[1739343203065,15.94581278,194.15,194.11,0.03]
[1739343203455,15.94581278,194.13,194.11,0.03]
[1739343203656,1.5452,194.15,194.11,0.03]
[1739343203657,16.07130278,194.12,194.11,0.03]
[1739343203860,40.18901556,194.12,194.11,0.03]
[1739343204176,40.18901556,194.12,194.08,0.03]
[1739343204177,45.72340556,194.12,194.08,0.03]
[1739343204487,15.94581278,194.09,194.08,0.03]
[1739343205288,15.94581278,194.09,194.07,0.03]
[1739343205289,0.12549,194.08,194.07,0.03]
[1739343205578,36.19679278,194.08,194.07,0.03]
[1739343206267,37.74249278,194.08,194.07,0.03]
[1739343207677,37.61700278,194.08,194.07,0.03]
[1739343210761,37.49151278,194.08,194.07,0.03]
[1739343214781,37.55451278,194.08,194.07,0.03]
[1739343214984,16.00881278,194.08,194.07,0.03]
[1739343216970,17.55451278,194.08,194.07,0.03]
[1739343217895,16.00881278,194.08,194.07,0.03]
[1739343219793,10.28029871,194.08,194.07,0.03]
[1739343221189,0.063,194.08,194.07,0.03]
[1739343221376,0.063,194.08,194.07,10.24729871]
[1739343221772,0.063,194.08,194.07,0.03]
[1739343225879,0.063,194.08,194.07,29.39921539]
[1739343226714,0.063,194.08,194.07,34.55191539]
[1739343229224,0.063,194.08,194.07,34.80289539]
[1739343231736,0.0001,194.08,194.07,34.80289539]
[1739343233115,0.0001,194.08,194.07,41.51147539]
[1739343235405,0.0001,194.08,194.07,41.38598539]
[1739343238749,0.0001,194.08,194.07,41.26049539]
[1739343239441,0.0001,194.16,194.15,1.37647]
[1739343239739,1.7179,194.28,194.18,20.0]
[1739343239917,1.7179,194.28,194.23,15.95736686]
[1739343240634,1.7179,194.28,194.15,2.25098]
[1739343240635,15.95736686,194.24,194.15,15.95736686]
[1739343240941,0.12549,194.27,194.15,15.95736686]
[1739343240942,15.95736686,194.22,194.16,5.1503]
[1739343241828,15.95736686,194.25,194.19,15.95736686]
[1739343242033,15.95746686,194.26,194.2,15.95736686]
[1739343242218,0.0001,194.26,194.21,15.95736686]
[1739343242541,0.0001,194.26,194.23,15.95736686]
[1739343243036,0.0001,194.26,194.24,15.95736686]
[1739343243920,0.0001,194.26,194.24,21.10536686]
[1739343244225,0.0001,194.26,194.25,15.95736686]
[1739343246126,0.0001,194.26,194.25,21.10536686]
[1739343246434,1.37647,194.25,194.11,15.95736686]
[1739343246635,15.95736686,194.17,194.11,15.95736686]
[1739343246934,20.0,194.22,194.09,5.1522]
[1739343247235,20.0,194.22,194.12,20.0]
[1739343247431,15.95736686,194.17,194.12,20.0]
[1739343247632,15.95736686,194.17,194.1,29.36921539]
[1739343248214,15.95736686,194.17,194.11,15.95736686]
[1739343248414,15.95736686,194.18,194.11,15.95736686]
[1739343248738,15.95736686,194.2,194.13,15.95736686]
[1739343249036,15.95736686,194.19,194.12,15.95736686]
[1739343249512,15.95736686,194.18,194.12,15.95736686]
[1739343249931,15.95736686,194.2,194.13,15.95736686]
[1739343250138,15.95736686,194.21,194.14,15.95736686]
[1739343250625,15.95736686,194.21,194.1,0.03]
[1739343250626,16.08285686,194.15,194.1,0.03]
[1739343250944,15.95736686,194.11,194.1,0.03]
[1739343254645,1.5454,194.12,194.1,0.03]
[1739343254646,15.95736686,194.12,194.1,0.03]
[1739343254839,15.95736686,194.13,194.1,0.03]
[1739343255046,1.5453,194.14,194.1,0.03]
[1739343255047,17.50266686,194.14,194.1,0.03]
[1739343255227,15.95736686,194.15,194.1,0.03]
[1739343255635,17.50256686,194.15,194.1,0.03]
[1739343256149,15.95736686,194.14,194.1,0.03]
[1739343256349,15.95736686,194.13,194.1,0.03]
[1739343258661,1.5453,194.13,194.1,0.03]
[1739343258954,15.95736686,194.14,194.1,0.03]
[1739343259758,7.6393,194.16,194.1,0.03]
[1739343259759,15.95736686,194.12,194.1,0.03]
[1739343261050,17.50276686,194.12,194.1,0.03]
[1739343262468,129.20305225,194.11,194.1,0.0001]
[1739343262644,114.54022372,194.11,194.1,0.0001]
[1739343262865,98.58285686,194.11,194.1,0.0001]
[1739343263160,100.12835686,194.11,194.1,0.0001]
[1739343263756,118.21121372,194.11,194.1,0.0001]
[1739343263959,20.0,194.08,194.07,0.0001]
[1739343264154,35.95736686,194.08,194.07,0.0001]
[1739343265049,37.50306686,194.08,194.07,0.0001]
[1739343265256,38.75404686,194.08,194.07,0.0001]
[1739343267743,42.5226058,194.08,194.07,0.0001]
[1739343267947,41.3971158,194.08,194.07,0.0001]
[1739343268145,3.76855894,194.08,194.07,0.0001]
[1739343268449,19.7259258,194.08,194.07,0.0001]
[1739343268856,22.74023148,194.08,194.07,0.0001]
[1739343269275,24.28593148,194.08,194.07,0.0001]
[1739343269973,22.74023148,194.08,194.07,0.0001]
[1739343271067,24.41142148,194.08,194.07,0.0001]
[1739343271264,44.41142148,194.08,194.07,0.0001]
[1739343271652,44.28593148,194.08,194.07,0.0001]
[1739343273166,42.74023148,194.08,194.07,0.0001]
[1739343274082,22.74023148,194.08,194.07,0.0001]
[1739343274872,24.28593148,194.08,194.07,0.0001]
[1739343275070,24.41142148,194.08,194.07,0.0001]
[1739343275274,25.53691148,194.08,194.07,0.0001]
[1739343277382,0.12549,194.04,193.97,0.03]
[1739343277685,15.95736686,193.98,193.97,0.03]
[1739343279184,15.95736686,193.98,193.97,0.03]
[1739343280283,18.97167254,193.98,193.97,0.03]
[1739343280987,22.72783347,193.98,193.97,0.03]
[1739343282770,24.39982347,193.98,193.97,0.03]
[1739343283159,22.72783347,193.98,193.97,0.03]
[1739343286482,34.98231713,193.98,193.97,0.03]
[1739343286674,34.98231713,193.98,193.96,0.02276872]
[1739343286875,15.95736686,193.97,193.96,0.02276872]
[1739343288376,17.50396686,193.97,193.96,0.02276872]
[1739343289284,34.92534523,193.97,193.96,0.02276872]
[1739343289695,33.37874523,193.97,193.96,0.02276872]
[1739343290570,34.92534523,193.97,193.96,0.02276872]
[1739343291075,34.92534523,193.97,193.91,0.03]
[1739343291272,15.95736686,193.96,193.91,0.03]
[1739343292694,15.35528257,193.95,193.91,0.03]
[1739343293291,31.31264943,193.95,193.91,0.03]
[1739343293493,0.56381963,193.92,193.91,0.03]
[1739343294684,3.57812531,193.92,193.91,0.03]
[1739343295593,3.01430568,193.92,193.91,0.03]
[1739343296177,12.77266269,193.92,193.91,0.03]
[1739343298192,15.35560441,193.92,193.91,0.03]
[1739343298997,15.35560441,193.92,193.9,0.02102437]
[1739343299180,31.31297127,193.92,193.9,0.02102437]
[1739343299698,25.58770608,193.92,193.9,0.02102437]
[1739343300192,22.5734004,193.91,193.9,0.02102437]
[1739343300587,25.58770608,193.91,193.9,0.02102437]
[1739343300797,15.35560441,193.91,193.9,0.02102437]
[1739343301578,25.58770608,193.91,193.9,0.02102437]
[1739343302097,23.00476436,193.91,193.9,0.02102437]
[1739343302303,23.00476436,193.91,193.86,5.14645575]
[1739343302803,12.77266269,193.91,193.87,10.23210167]
[1739343303197,12.77266269,193.91,193.88,10.23210167]
[1739343303401,12.77266269,193.91,193.89,10.20619713]
[1739343303883,9.75835701,193.9,193.89,10.20619713]
[1739343304301,12.77266269,193.9,193.89,10.20619713]
[1739343304607,12.77266269,193.9,193.88,10.23210167]
[1739343304903,12.77266269,193.9,193.89,5.1575]
[1739343305108,9.75835701,193.9,193.89,5.1575]
[1739343305777,12.77919128,193.9,193.89,5.1575]
[1739343307003,6.7769952,193.9,193.89,5.1575]
[1739343310512,6.7769952,193.9,193.89,5.1875]
[1739343312888,6.7769952,193.9,193.89,10.26210167]
[1739343313992,0.063,193.91,193.89,10.26210167]
[1739343314291,0.063,193.91,193.9,10.23210167]
[1739343315108,0.063,193.91,193.9,28.8011502]
[1739343315307,3.09102299,193.91,193.9,28.8011502]
[1739343316612,6.87665436,193.91,193.9,28.8011502]
[1739343317196,5.436e-05,193.91,193.9,28.9266402]
[1739343317823,5.436e-05,193.91,193.9,29.0521302]
[1739343318693,10.23210167,193.99,193.91,0.12549]
[1739343318890,10.23210167,193.98,193.92,10.23210167]
[1739343319902,10.23210167,193.99,193.93,10.23210167]
[1739343320504,10.23210167,193.98,193.92,10.23210167]
[1739343320816,10.23210167,193.98,193.92,15.38880167]
[1739343321897,11.77850167,193.99,193.93,10.23210167]
[1739343322929,0.063,193.98,193.93,10.23210167]
[1739343323918,0.063,193.98,193.93,15.38840167]
[1739343327221,0.063,193.98,193.94,10.23210167]
[1739343327523,0.063,193.98,193.95,10.23210167]
[1739343327821,0.063,193.98,193.94,10.23210167]
[1739343329121,0.063,193.98,193.93,10.23210167]
[1739343329499,3.03798132,193.97,193.93,10.23210167]
[1739343330296,3.03798132,193.97,193.94,10.23210167]
[1739343330501,3.79723867,193.96,193.94,10.23210167]
[1739343331216,3.03798132,193.95,193.94,10.23210167]
[1739343332324,6.83521999,193.95,193.94,15.38830167]
[1739343332823,6.83521999,193.95,193.94,10.23210167]
[1739343333925,6.83521999,193.95,193.94,15.38830167]
[1739343337702,6.83521999,193.95,193.94,10.23210167]
[1739343338215,3.79723867,193.95,193.94,10.23210167]
[1739343338522,3.79723867,193.95,193.94,15.38830167]
[1739343340127,3.79723867,193.95,193.94,5.1562]
[1739343340733,3.79723867,193.95,193.93,15.38850167]
[1739343341524,3.79723867,193.95,193.94,10.23210167]
[1739343343520,3.79723867,193.95,193.94,15.38830167]
[1739343347412,0.063,193.98,193.94,15.38830167]
[1739343347731,0.063,193.98,193.96,10.23210167]
[1739343348628,0.063,193.98,193.97,5.1554]
[1739343349826,0.063,193.98,193.96,15.38770167]
[1739343350029,0.063,193.98,193.96,5.1556]
[1739343350432,3.86225961,193.98,193.96,5.1556]
[1739343352231,3.79925961,193.97,193.96,5.1556]
[1739343352918,3.79925961,193.97,193.96,15.38770167]
[1739343355643,0.063,193.98,193.96,15.38770167]
[1739343357037,0.063,193.98,193.97,23.6439502]
[1739343357342,0.063,193.98,193.96,15.38770167]
[1739343358024,0.063,193.98,193.97,10.23210167]
[1739343359133,0.063,193.98,193.97,15.38750167]
[1739343360745,0.063,193.98,193.96,10.23210167]
[1739343361131,0.063,193.98,193.96,15.38770167]
[1739343361333,0.063,193.98,193.94,10.23210167]
[1739343361523,0.063,193.98,193.93,10.23210167]
[1739343362745,0.063,193.98,193.94,10.23210167]
[1739343363646,0.063,193.98,193.94,15.38820167]
[1739343363841,0.063,193.98,193.95,10.23210167]
[1739343366934,0.063,193.98,193.95,15.38800167]
[1739343367654,0.063,193.98,193.97,10.23210167]
[1739343368753,0.063,193.98,193.97,15.38750167]
[1739343369850,0.063,193.98,193.97,10.23210167]
[1739343371154,0.063,193.98,193.97,15.38750167]
[1739343373054,0.063,193.98,193.95,10.23210167]
[1739343373261,0.063,193.98,193.94,10.23210167]
[1739343373843,0.063,193.98,193.95,10.23210167]
[1739343374149,10.23210167,193.96,193.91,0.03]
[1739343375368,10.23210167,193.95,193.91,0.03]
[1739343375655,10.23210167,193.96,193.91,0.03]
[1739343378139,10.23210167,193.95,193.91,0.03]
[1739343379861,10.23210167,193.94,193.91,0.03]
[1739343381448,10.23210167,193.93,193.91,0.03]
[1739343381655,10.23210167,193.94,193.91,0.03]
[1739343382633,10.23210167,193.93,193.91,0.03]
[1739343385362,10.23210167,193.94,193.91,0.03]
[1739343385570,30.29510167,193.95,193.91,0.03]
[1739343386652,10.29510167,193.95,193.91,0.03]
[1739343387644,31.84190167,193.95,193.91,0.03]
[1739343387844,10.23210167,193.94,193.91,0.03]
[1739343390168,10.29510167,193.95,193.91,0.03]
[1739343390344,0.063,193.95,193.91,0.03]
[1739343391550,0.063,193.95,193.91,5.187]
[1739343392254,0.063,193.95,193.91,0.03]
[1739343392467,10.23210167,193.93,193.91,0.03]
[1739343393560,10.29510167,193.95,193.91,0.03]
[1739343394073,10.23210167,193.94,193.91,0.03]
[1739343394368,0.063,193.95,193.91,0.03]
[1739343394369,34.11237167,193.92,193.91,0.03]
[1739343394562,75.04077835,193.92,193.91,0.03]
[1739343394761,109.36800998,193.92,193.91,0.03]
[1739343395152,0.25098,193.91,193.9,0.03]
[1739343395353,64.43347003,193.91,193.9,0.03]
[1739343395759,25.05216335,193.91,193.9,0.03]
[1739343396276,65.98057003,193.91,193.9,0.03]
[1739343396655,25.05216335,193.91,193.9,0.03]
[1739343396863,65.98057003,193.91,193.9,0.03]
[1739343397057,65.98057003,193.91,193.77,8.05290099]
[1739343397058,21.37647,193.87,193.77,8.05290099]
[1739343397356,10.23210167,193.78,193.77,8.05290099]
[1739343397874,10.23210167,193.78,193.73,0.1]
[1739343398170,10.23210167,193.77,193.73,0.1]
[1739343398953,10.35759167,193.77,193.73,0.1]
[1739343399268,10.23210167,193.77,193.73,0.1]
[1739343400179,10.35759167,193.77,193.73,0.1]
[1739343400380,10.23210167,193.77,193.73,0.1]
[1739343402257,10.35759167,193.77,193.73,0.1]
[1739343405174,10.23210167,193.77,193.73,5.2618]
[1739343405370,10.23210167,193.77,193.73,0.1]
[1739343406388,10.23210167,193.77,193.73,5.2618]
[1739343406587,10.23210167,193.77,193.73,0.1]
[1739343406990,10.23210167,193.77,193.76,0.06578858]
[1739343409692,0.25098,193.76,193.73,0.1]
[1739343409905,10.35759167,193.74,193.73,0.1]
[1739343410593,10.48308167,193.74,193.73,0.1]
[1739343411178,12.03148167,193.74,193.73,0.1]
[1739343411578,11.78050167,193.74,193.73,0.1]
[1739343412082,20.0,193.71,193.6,5.1652]
[1739343412277,10.23210167,193.64,193.6,5.1652]
[1739343413097,10.23210167,193.61,193.55,12.9159]
[1739343413276,1.549,193.67,193.55,5.1664]
[1739343413277,10.23210167,193.59,193.55,5.1664]
[1739343414287,10.23210167,193.59,193.53,5.1669]
[1739343414601,10.23210167,193.59,193.53,15.39900167]
[1739343414775,20.0,193.51,193.38,10.23210167]
[1739343414975,6.0737,193.53,193.42,5.17]
[1739343415200,7.0737,193.53,193.42,5.22]
[1739343415400,6.0737,193.53,193.42,5.22]
[1739343415587,16.05799472,193.51,193.42,5.22]
[1739343415895,16.05799472,193.5,193.43,16.05799472]
[1739343416094,16.05799472,193.49,193.42,21.27799472]
[1739343416300,16.05799472,193.49,193.42,16.10799472]
[1739343416597,1.5502,193.52,193.43,16.05799472]
[1739343416598,16.05799472,193.5,193.43,16.05799472]
[1739343417095,16.05799472,193.52,193.45,16.05799472]
[1739343417299,29.96131402,193.54,193.47,16.05799472]
[1739343417516,13.9033193,193.54,193.49,16.05799472]
[1739343417890,13.9033193,193.54,193.42,19.0951]
[1739343417891,29.96131402,193.54,193.47,16.05799472]
[1739343418188,13.9033193,193.54,193.51,16.05799472]
[1739343418371,13.9033193,193.54,193.52,16.05799472]
[1739343418771,13.9033193,193.54,193.53,16.05799472]
[1739343420109,13.9033193,193.54,193.53,21.22509472]
[1739343420878,1.93e-05,193.54,193.53,21.22509472]
[1739343421088,1.93e-05,193.54,193.53,22.22509472]
[1739343421294,16.05799472,193.67,193.53,35.14289472]
[1739343421493,16.05799472,193.68,193.61,16.05799472]
[1739343421695,16.05799472,193.69,193.63,16.05799472]
[1739343422077,16.05799472,193.67,193.6,16.05799472]
[1739343422391,16.05799472,193.66,193.6,16.05799472]
[1739343422698,16.05799472,193.66,193.56,12.9154]
[1739343422699,16.05799472,193.66,193.59,16.05799472]
[1739343422902,16.05799472,193.65,193.59,16.05799472]
[1739343423493,16.05799472,193.67,193.6,16.05799472]
[1739343423683,16.05799472,193.69,193.62,16.05799472]
[1739343424102,16.05799472,193.67,193.61,16.05799472]
[1739343424408,14.0589079,193.71,193.65,16.05799472]
[1739343424409,13.9334179,193.71,193.65,16.05799472]
[1739343424591,13.9334179,193.71,193.66,16.05799472]
[1739343424795,13.9334179,193.71,193.68,16.05799472]
[1739343424989,13.9334179,193.71,193.66,16.05799472]
[1739343425704,13.9334179,193.71,193.65,16.05799472]
[1739343426211,29.99141262,193.71,193.65,16.05799472]
[1739343426904,13.9334179,193.71,193.65,16.05799472]
[1739343427113,13.9334179,193.71,193.65,21.22189472]
[1739343427413,13.9334179,193.71,193.67,16.05799472]
[1739343427619,13.9334179,193.71,193.68,16.05799472]
[1739343429596,13.9334179,193.71,193.67,16.05799472]
[1739343430005,13.9334179,193.71,193.69,16.05799472]
[1739343430407,13.9334179,193.71,193.69,21.22069472]
[1739343431411,13.9334179,193.71,193.7,16.05799472]
[1739343431595,82.5,193.78,193.7,16.05799472]
[1739343431797,16.05799472,193.76,193.7,16.05799472]
[1739343433996,100.10609472,193.78,193.72,16.05799472]
[1739343434196,82.5,193.78,193.73,16.05799472]
[1739343434417,16.05799472,193.77,193.71,16.05799472]
[1739343434621,100.10609472,193.78,193.72,16.05799472]
[1739343434924,82.5,193.78,193.74,16.05799472]
[1739343435093,82.5,193.78,193.65,1.0]
[1739343435094,82.5,193.78,193.76,16.05799472]
[1739343435414,82.5,193.78,193.77,16.05799472]
[1739343436895,98.55799472,193.86,193.77,21.21869472]
[1739343437102,98.55799472,193.86,193.8,16.05799472]
[1739343437302,16.05799472,193.85,193.79,16.05799472]
[1739343438028,98.55799472,193.86,193.8,16.05799472]
[1739343438527,82.5,193.86,193.81,16.05799472]
[1739343439640,82.5,193.86,193.8,16.05799472]
[1739343439839,98.55799472,193.86,193.8,16.05799472]
[1739343440205,82.5,193.86,193.81,16.05799472]
[1739343440406,82.5,193.86,193.82,16.05799472]
[1739343440832,82.5,193.86,193.74,13.9038]
[1739343440833,100.10549472,193.86,193.8,16.05799472]
[1739343441229,16.05799472,193.85,193.79,16.05799472]
[1739343441411,100.10549472,193.86,193.79,16.05799472]
[1739343441721,82.5,193.86,193.81,16.05799472]
[1739343441927,17.66829472,193.89,193.83,16.05799472]
[1739343442124,0.063,193.89,193.84,16.05799472]
[1739343442331,0.063,193.89,193.85,16.05799472]
[1739343443731,0.063,193.89,193.86,16.05799472]
[1739343443934,0.063,193.89,193.87,16.05799472]
[1739343444236,0.063,193.89,193.88,16.05799472]
[1739343444531,0.063,193.89,193.87,16.05799472]
[1739343444836,0.063,193.89,193.88,16.05799472]
[1739343446933,0.063,193.89,193.87,16.05799472]
[1739343447234,0.063,193.89,193.88,16.05799472]
[1739343449124,0.063,193.89,193.88,21.21579472]
[1739343449441,0.063,193.89,193.88,16.05799472]
[1739343451350,0.063,193.89,193.88,21.21579472]
[1739343452230,0.063,193.89,193.88,16.05799472]
[1739343452547,0.063,193.89,193.88,21.21579472]
[1739343454245,0.063,193.89,193.88,16.05799472]